Cogmind - Beta 14 @@@ ROGUE MODE // 2024.10.15 @ 11:24:13 Player: Ae Result: Destroyed by Piercing Trap Performance ------------- Evolutions (0) 0 Regions Visited (2) 400 Robots Destroyed (36) 180 Value Destroyed (806) 806 Prototype IDs (13) 260 Alien Tech Used (0) 0 Bonus (0) 0 TOTAL SCORE: 1646 Bonus ------- None Cogmind --------- Core Integrity 0/250 Matter 267/300 Energy 99/100 System Corruption 0% Temperature Cool (0) Movement Rolling (150) Ox4 Location -10/Subcaves Parts ------- > --- POWER (1) -------- (None) > --- PROPULSION (2) --- Light Treads Subdweller Monowheel > --- UTILITY (2) ------ Huge Storage Unit Makeshift Thermal Plating > --- WEAPON (2) ------- Beam Cannon Subdweller Machine Gun > --- INVENTORY (25) --- Ion Engine Subdweller Power Source Meta Core Subdweller Monowheel Disposable Heat Sink Disposable Heat Sink Large Storage Unit Subdweller Optics Subdweller Optics Seismic Detector Recalibrator Subdweller Laser Assault Rifle Assault Rifle Battle Rifle Battle Rifle Subdweller Machine Gun Subdweller Machine Gun Battle Cannon Grenade Launcher Datajack Makeshift Sword Shrapnel Trap Peak State ------------ > --- POWER ------------ Subdweller Power Source > --- PROPULSION ------- Light Treads Subdweller Monowheel > --- UTILITY ---------- Huge Storage Unit Makeshift Thermal Plating > --- WEAPON ----------- Beam Cannon Subdweller Machine Gun > --- INVENTORY -------- Ion Engine Subdweller Power Source Meta Core Subdweller Monowheel Disposable Heat Sink Disposable Heat Sink Large Storage Unit Subdweller Optics Seismic Detector Recalibrator Subdweller Laser Assault Rifle Assault Rifle Battle Rifle Battle Rifle Subdweller Machine Gun Subdweller Machine Gun Battle Cannon Grenade Launcher Datajack Makeshift Sword Shrapnel Trap [Rating: 18] Favorites ----------- Power Subdweller Power Source Engine Subdweller Power Source Propulsion Light Treads Treads Light Treads Wheel Wheel Utility Huge Storage Unit Device Seismic Detector Storage Huge Storage Unit Protection Light Armor Plating Weapon Beam Cannon Energy Cannon Beam Cannon Ballistic Gun Subdweller Machine Gun Launcher Grenade Launcher Build | -11 -10 -10 ------- Run | Yrd Mat Sub Slots Evolved . | . . . Power . | . . . Propulsion . | . . . Utility . | . . . Weapon . | . . . Parts Attached 44 | 7 10 27 Power 4 | 1 1 2 Engine 4 | 1 1 2 Core . | . . . Reactor . | . . . Propulsion 6 | 2 . 4 Treads 3 | 1 . 2 Leg . | . . . Wheel 3 | 1 . 2 Hover . | . . . Flight . | . . . Utility 14 | 2 2 10 Device 7 | 1 . 6 Storage 3 | 1 1 1 Processor . | . . . Hackware . | . . . Protection 4 | . 1 3 Artifact . | . . . Weapon 20 | 2 7 11 Energy Gun . | . . . Energy Cannon 3 | . 2 1 Ballistic Gun 11 | 2 2 7 Ballistic Cannon . | . . . Launcher 6 | . 3 3 Special Weapon . | . . . Impact Weapon . | . . . Slashing Weapon . | . . . Piercing Weapon . | . . . Special Melee Weapon . | . . . Unidentified Prototypes . | . . . Parts Lost 8 | . . 8 Power 2 | . . 2 Propulsion 3 | . . 3 Utility 1 | . . 1 Weapon 2 | . . 2 Highest Loss Streak 3 | . . 3 To Critical Strikes . | . . . Average Slot Usage (%) 99 | . 100 98 Engine 13 | . 14 12 Treads 14 | . 14 14 Wheel 13 | . 14 13 Device 9 | . 7 10 Storage 14 | . 14 14 Protection 4 | . 6 3 Energy Cannon 13 | . 13 13 Ballistic Gun 13 | . 14 13 Peak Build Rating 18 | 7 8 18 Average Rating 10 | 4 7 12 On Entrance 5 | . 7 8 Naked Turns . | . . . Heaviest Build 96 | 15 33 96 Greatest Support 20 | 20 10 20 Greatest Overweight (x) 9 | 1 3 9 Average Overweight (x) 5 | . 2 7 Largest Inventory Capacity 25 | 8 15 25 Average Capacity 20 | 6 14 24 Most Carried 23 | 4 13 23 Average Carried 14 | 3 9 17 Final Capacity 25 | 8 15 25 Final Carried 23 | 4 13 23 Class Distribution -------------------- 100% | Mutant Dominant Class ---------------- Mutant | -10/Materials Mutant | -10/Subcaves Resources | -11 -10 -10 ----------- Run | Yrd Mat Sub Matter Collected 1034 | 316 263 455 Remotely . | . . . Salvage Created 893 | 87 522 284 Parts 58 | 3 41 14 Haulers Intercepted 2 | . 2 . Recyclers Shooed . | . . . Parts Field Recycled . | . . . Retrieved Matter . | . . . Parts Self-Destructed 6 | . . 6 Prevented . | . . . Kills | -11 -10 -10 ------- Run | Yrd Mat Sub Combat Hostiles Destroyed 23 | . 15 8 Guns 3 | . . 3 Cannons 7 | . 5 2 AOE 13 | . 10 3 Classes Destroyed 11 | 2 8 1 Worker 4 | . 4 . Builder 1 | . 1 . Tunneler 1 | 1 . . Hauler 2 | . 2 . Recycler 1 | 1 . . Mechanic 1 | . 1 . Operator 2 | . 2 . Watcher 1 | . 1 . Swarmer 6 | . 6 . Grunt 9 | . 9 . Subdweller 8 | . . 8 Best Kill Streak 6 | 2 6 2 Combat Bots Only 5 | . 5 2 Max Kills in Single Turn 2 | 1 2 1 Gunslinging . | . . . Exploded 2 | . 2 1 Melee . | . . . Uniques/NPCs Destroyed . | . . . Combat | -11 -10 -10 -------- Run | Yrd Mat Sub Hostile Shots Fired 88 | . 30 58 Missed 26 | . 7 19 Damage Taken 1400 | . 294 1106 Core 258 | . 55 203 Absorbed by Shields . | . . . Ignored by Resistances 40 | . . 40 Core Remaining (%) 100 | 100 . . Volleys Fired 123 | 8 45 70 Largest 2 | 2 2 2 Hottest 90 | 40 80 90 Shots Fired 198 | 16 78 104 Gun 96 | 16 33 47 Cannon 80 | . 33 47 Launcher 22 | . 12 10 Special . | . . . Kinetic 96 | 16 33 47 Thermal 80 | . 33 47 Explosive 22 | . 12 10 Electromagnetic . | . . . Robot Hit Streak 16 | 4 9 16 Robot Miss Streak 5 | 1 5 2 Penetration Max . | . . . Secondary Targets . | . . . Shots Hit Robots 111 | 11 50 50 Core Hits 59 | 3 36 20 Critical Kills . | . . . Critical Parts Destroyed 1 | . 1 . Critical Strikes 1 | . 1 . Destroy 1 | . 1 . Melee Attacks . | . . . Impact . | . . . Slashing . | . . . Piercing . | . . . Sneak Attacks . | . . . Combat Hostiles . | . . . Follow-up Attacks . | . . . Damage Inflicted 2956 | 133 1632 1191 Guns 770 | 133 241 396 Cannons 804 | . 403 401 Explosions 1382 | . 988 394 Melee . | . . . Ramming . | . . . Kinetic 770 | 133 241 396 Thermal 804 | . 403 401 Explosive 1382 | . 988 394 Electromagnetic . | . . . Impact . | . . . Slashing . | . . . Piercing . | . . . Highest Corruption . | . . . Average Corruption . | . . . Corruption Purged . | . . . Corruption Blocked . | . . . Overload Shots . | . . . Overflow Damage 10 | . 10 . Projectiles . | . . . Explosions 10 | . 10 . Melee . | . . . Knockbacks . | . . . Impact . | . . . Kinetic . | . . . Secondary . | . . . Self-Inflicted Damage 69 | . 69 . Shots 5 | . 5 . Rammed . | . . . Targets Rammed . | . . . Kicked . | . . . Crushed . | . . . Highest Temperature 145 | . 145 . Average Temperature 62 | . 62 . Received Heat Transfer 333 | . 111 222 Siege Activations . | . . . Robots Corrupted . | . . . Combat Hostiles . | . . . Parts Fried . | . . . Impact Corruptions . | . . . Robots Melted . | . . . Combat Hostiles . | . . . Parts Melted 2 | . . 2 Heat Transferred 1702 | . 851 851 Parts Sabotaged . | . . . Parts Stolen . | . . . Parts Stripped . | . . . Power Chain Reactions . | . . . Alert | -11 -10 -10 ------- Run | Yrd Mat Sub Peak Influence 324 | 10 324 . Initial 6 | . 6 . Average 183 | 3 196 . Maximum Alert Level 1 | . 1 . Low Security (%) 52 | 100 48 . Level 1 47 | . 51 . Level 2 . | . . . Level 3 . | . . . Level 4 . | . . . Level 5 . | . . . High Security . | . . . Max Security . | . . . Squads Dispatched 3 | . 3 . Investigation 1 | . 1 . Extermination . | . . . Reinforcement 2 | . 2 . Assault . | . . . Garrison . | . . . Intercept . | . . . Searches Triggered . | . . . Construction Impeded . | . . . Haulers Reinforced . | . . . Active Scanning Responses . | . . . Cargo Convoy Interrupts . | . . . Stealth | -11 -10 -10 --------- Run | Yrd Mat Sub Distress Signals . | . . . Communications Jammed . | . . . Distress Signals . | . . . Times Spotted 36 | . 28 8 Peak Tracking Total 6 | . 6 2 Tactical Retreats . | . . . Traps | -11 -10 -10 ------- Run | Yrd Mat Sub Traps Triggered 3 | . 1 2 Indirectly . | . . . Trap Hack Attempts . | . . . Triggered . | . . . Disarmed . | . . . Reprogrammed . | . . . Reused . | . . . Traps Extracted . | . . . Installed . | . . . Triggered . | . . . Most Traps Carried 1 | . . 1 Machines | -11 -10 -10 ---------- Run | Yrd Mat Sub Machines Disabled 3 | . 2 1 Max in Single Turn 1 | . 1 1 Machines Repaired . | . . . Machines Dismantled . | . . . Machines Sabotaged . | . . . Overloaded Fab Kills . | . . . Hacking | -11 -10 -10 --------- Run | Yrd Mat Sub Machines Accessed 6 | . 5 1 Terminals 5 | . 5 . Fabricators . | . . . Repair Stations . | . . . Recycling Units . | . . . Scanalyzers . | . . . Garrison Access . | . . . Total Hacks 16 | . 15 1 Successful 9 | . 8 1 Failed 7 | . 7 . Catastrophic . | . . . Database Lockouts . | . . . Manual 12 | . 12 . Terminals 15 | . 15 . Fabricators . | . . . Repair Stations . | . . . Recycling Units . | . . . Scanalyzers . | . . . Garrison Access . | . . . Terminal Hacks 2 | . 1 1 Prototype ID Bank 1 | . 1 . Derelict Proto ID Bank 1 | . . 1 Fabricator Hacks . | . . . Repair Station Hacks . | . . . Recycling Unit Hacks . | . . . Scanalyzer . | . . . Garrison Access Hacks . | . . . Unauthorized Hacks 7 | . 7 . Terminals 7 | . 7 . Botnet 2 | . 2 . Skim 5 | . 5 . Fabricators . | . . . Repair Stations . | . . . Recycling Units . | . . . Scanalyzers . | . . . Garrison Access . | . . . Data Cores Recovered . | . . . Used . | . . . Hacking Detections 4 | . 4 . Full Trace Events . | . . . Feedback Events . | . . . Feedback Blocked . | . . . Robot Schematics Acquired . | . . . Robots Built . | . . . Authchips . | . . . Time . | . . . Total Robot Build Rating . | . . . Part Schematics Acquired . | . . . Parts Built . | . . . Authchips . | . . . Time . | . . . Total Part Build Rating . | . . . Parts Repaired . | . . . Time . | . . . Parts Recycled . | . . . Recycled Matter . | . . . Retrieved Matter . | . . . Retrieved Components . | . . . Parts Scanalyzed . | . . . Part Schematics Acquired . | . . . Parts Damaged . | . . . Bothacking | -11 -10 -10 ------------ Run | Yrd Mat Sub Used RIF Installer . | . . . Robots Hacked . | . . . Non-combat . | . . . Combat . | . . . Robot Hacks Applied . | . . . Relay Couplers Released . | . . . Fabnet Peak Effective % . | . . . Robots Rewired . | . . . Allies Hacked . | . . . Hacks Repelled . | . . . Allies | -11 -10 -10 -------- Run | Yrd Mat Sub Total Allies . | . . . Largest Group . | . . . Highest-Rated Group . | . . . Highest-Rated Ally . | . . . Total Orders . | . . . Ally Attacks . | . . . Total Damage . | . . . Kills . | . . . Allies Corrupted . | . . . Allies Melted . | . . . Intel | -11 -10 -10 ------- Run | Yrd Mat Sub Robot Analysis Total . | . . . Derelict Logs Recovered 1 | . . 1 Drone Launches . | . . . Drone Recoveries . | . . . Exploration | -11 -10 -10 ------------- Run | Yrd Mat Sub Turns Passed 2831 | 74 1014 1743 Spaces Moved 1433 | 41 626 766 Core 4 | 4 . . Treads 20 | 1 . 19 Legs . | . . . Wheels 1409 | 36 626 747 Hover . | . . . Flight . | . . . Fastest Speed 50 | 50 95 125 Average Speed 160 | 86 121 196 Slowest Speed 240 | 160 125 240 Overloaded Moves . | . . . Propulsion Burnouts . | . . . Robots Hopped . | . . . Cave-ins Triggered . | . . . Exploration Rate (%) 51 | 4 95 55 Regions Visited 2 Branch Regions 1 Pre-discovered Areas 2 | . 1 1 Known Exits Taken 1 | . 1 . Unknown Exits Taken 1 | 1 . . Scrap Searched 2 | . . 2 Spaces Dug 2 | . . 2 Terrain Destroyed 106 | . 70 36 Melee . | . . . Projectile 2 | . . 2 AOE 104 | . 70 34 Terrain Rammed . | . . . Walls Destroyed . | . . . Machines Disabled . | . . . Actions | -11 -10 -10 --------- Run | Yrd Mat Sub Total 1746 | 60 796 890 Wait 106 | . 105 1 Move 1431 | 40 625 766 Hop . | . . . Pick Up 35 | 5 9 21 Fast Attach 6 | 6 . . Attach 9 | 1 . 8 Detach . | . . . Swap 29 | . 10 19 Drop 7 | . 2 5 Fire 123 | 8 45 70 Melee . | . . . Ram . | . . . Kick . | . . . Crush . | . . . Escape Stasis . | . . . Rewire . | . . . Trap . | . . . Miscellaneous . | . . . Route ------- -11/Scrapyard -10/Materials (discovered 6 exits: *Mat x3 / *Min x2 / *Sub) -10/Subcaves History --------- Turn | Location | Event 14 | -11/Scrapyard | Discovered new exit (range 16) 75 | -11/Scrapyard | Entered Materials 75 | -10/Materials | Discovered new exit (range 8) 186 | -10/Materials | Discovered new exit (range 9) 267 | -10/Materials | Discovered new exit (range 9) 318 | -10/Materials | Build established: Mutant 429 | -10/Materials | Discovered new exit (range 14) 568 | -10/Materials | Identified exit to Subcaves 568 | -10/Materials | Identified exit to Materials 598 | -10/Materials | Identified exit to Mines 620 | -10/Materials | Learned Storage emergency access door positions 634 | -10/Materials | Learned Storage security intel 645 | -10/Materials | Learned location of 1 exit from Storage 668 | -10/Materials | Learned Storage emergency access door positions 1089 | -10/Materials | Entered Subcaves 1093 | -10/Subcaves | Ambushed by Subdwellers from Twisted Machinery 1169 | -10/Subcaves | Learned location of Zion (-6) 1169 | -10/Subcaves | Met a Zionite searching for "candidates" 1178 | -10/Subcaves | A swath of the cavern ceiling suddenly collapsed 1216 | -10/Subcaves | Shifting Twisted Machinery released Sub. Power Source 1226 | -10/Subcaves | Shifting Twisted Machinery released Sub. Machine Gun 1665 | -10/Subcaves | Ambushed by angry Subdweller bent on revenge 1682 | -10/Subcaves | Core integrity fell below 50% 1845 | -10/Subcaves | A swath of the cavern ceiling suddenly collapsed 2287 | -10/Subcaves | Visited 4L-MR0's lab 2305 | -10/Subcaves | Found Meta Core 2606 | -10/Subcaves | Lost 3 parts (1p2n) 2686 | -10/Subcaves | Ambushed by Subdweller buried in earth 2687 | -10/Subcaves | Core integrity fell below 20% 2832 | -10/Subcaves | Destroyed by Piercing Trap Last Messages --------------- 02571_ Sub. Power Source destroyed. 02575_ Wheel destroyed. 02588_ 7N-X08(R) destroyed. 02597_ Acquired Sub. Laser. 02598_ Subatomizers dissect the Sub. Monowheel. 02598_ Acquired 42 matter. 02601_ Acquired Sub. Monowheel. 02610_ Subatomizers dissect the Disposable Heat Sink. 02629_ XM-IFX(u) builds Twisted Machinery. 02687_ 6K-RUQ(R): "SLEEPOVER!" 02692_ Sub. Power Source destroyed. 02701_ 6K-RUQ(R) destroyed. 02704_ Acquired 48 matter. 02707_ Acquired Sub. Optics. 02805_ Sub. Machine Gun shoots sparks and powers down. 02816_ DE-2SS(u) builds Twisted Machinery. 02823_ Triggered Shrapnel Trap. 02823_ An expanding cloud of shrapnel blasts out in all directions. 02832_ Triggered Piercing Trap. 02832_ Spikes shoot up from the floor. Map ----- +----------------------------------------------------+ | ?# ### #?????????????????????????? | | #?????????????????????????? | | #?????????????????????????? | | ## ## #?????????????????????????? | | ??############# #?????????????????????????? | | ??????????????## ##?????????????????????????? | | ???????????????# ##??????????????????????????? | | ???????????????# ##??????????????????????????? | | ???????????????# #???????###????????????????? | | ???????????????# ##????### #????????????????? | | ???????????????## ###??# #????????????????? | | ????????????????# " " ##?## #????????????????? | | ????????????????# """ ##?# #????????????????? | | ???????????????## ### ##???????????????? | | ???# ###### ##??????????????? | | ?? ##?????????????? | | ?? ## "" #?????????????? | | ?? "#### "" #?????????????? | | ??? ## #??# ###????????????? | | ??? ##??### #?##"# ; #????????????? | | ???? ????????#### #??###; ; #????????????? | | ?????????????????## ##?###; ; #????????????? | | ??????????????????####?## " ; #????????????? | | ?????????????????????###" " ;; #????????????? | | ?????????????????##### """" ;####????????????? | | ??????????????# @ ^###???????????????? | | ???????????????# ####?????????????????? | | ????????????u ## ##?????????????????????? | | ??????????? ????##????????????????????????? | | ??????????????????????????????????????????????? | | ??????????????????????????????????????????????? | | ??????????????????????????????????????????????? | | ??????????????????????????????????????????????? | | ??????????????????????????????????????????????? | | ??????????????????????????????????????????????? | | ??????????????????????????????????????????????? | | ??????????????????????????????????????????????? | | ??????????????????????????????????????????????? | | ??????????????????????????????????????????????? | | ??????????????????????????????????????????????? | | ??????????????????????????????????????????????? | | ??????????????????????????????????????????????? | | ??????????????????????????????????????????????? | | ??????????????????????????????????????????????? | | ??????????????????????????????????????????????? | | ??????????????????????????????????????????????? | | ??????????????????????????????????????????????? | | ??????????????????????????????????????????????? | | ??????????????????????????????????????????????? | | | +----------------------------------------------------+ Best States ------------- Heat Dissipation 25 Coolant Potential 50 Energy Generation 10 Energy Capacity 250 Matter Stores 298 Matter Capacity 300 Sight Range 16 Terrain Scan Density 10 Armor Coverage 150 Resistance: TH 10 Evasion (%) 44 Recoil Reduction 1 Item Schematics ----------------- None Robot Schematics ------------------ None Fabricated ------------ Nothing Alien Tech Used ----------------- None Achievements -------------- None Challenges ------------ None Game ------ Seed PlasmaScrapSaw Manual? 0 Play Time 00:21:23 Cumulative 81.5 hours Start 2024.10.15 @ 11:02:59 End 2024.10.15 @ 11:24:13 Sessions 1 Manual Loads 0 Difficulty Rogue Special Mode None Game No. 133 Rogue 105 Adventurer 28 Explorer 0 Win Type - Total 0 Types 0/0/0/0/0/0/0/0/0 Lore% 27 Gallery% 30 Achievement% 32 Wizard Run 0 Options --------- Layout 0 ASCII 0 Keyboard 1 Movement Numpad Keybinds 0 Fullscreen 2 Font 36/Smallcaps Map View 76x50 Zoom Use 0% Tactical HUD 1 Map Filters NONE Filters NONE Steam 1 RUN: 2d567ba9-ab11-4c1f-863e-ae8ddf4b0a77